fUST/lending_fUST_20260414
["ID","MTS","AMOUNT","RATE_DAILY","PERIOD"]
[420500880,1776173448213,-509.46208841,0.00010958,2]
[420500881,1776173448240,-500.0,0.00010958,2]
[420500882,1776173448250,-515.01916637,0.00010958,2]
[420500883,1776173448272,-500.0,0.00010958,2]
[420500884,1776173448282,-500.0,0.00010958,2]
[420500885,1776173448291,-500.0,0.00010958,2]
[420500886,1776173448308,-508.4686584,0.00010958,2]
[420500887,1776173448329,-500.0,0.00010958,2]
[420500888,1776173448339,-500.0,0.00010958,2]
[420500889,1776173448349,-500.0,0.00010958,2]
[420500890,1776173448370,-1000.0,0.00010958,2]
[420500891,1776173448380,-500.0,0.00010958,2]
[420500892,1776173448393,-500.0,0.00010958,2]
[420500893,1776173448413,-500.0,0.00010958,2]
[420500894,1776173448423,-513.43497856,0.00010958,2]
[420500895,1776173448434,-500.0,0.00010958,2]
[420500896,1776173448448,-500.0,0.00010958,2]
[420500897,1776173448469,-514.72009739,0.00010958,2]
[420500898,1776173448478,-212.24374745,0.00010958,2]
[420500899,1776173448488,-500.0,0.00010958,2]
[420500900,1776173448498,-504.43957226,0.00010958,2]
[420500902,1776173448516,-504.35682927,0.00010958,2]
[420500904,1776173448526,-500.0,0.00010958,2]
[420500906,1776173448550,-500.0,0.00010958,2]
[420500908,1776173448562,-500.0,0.00010958,2]
[420500910,1776173448580,-500.0,0.00010958,2]
[420500912,1776173448596,-305.57854019,0.00010958,2]
[420500914,1776173448611,-500.0,0.00010958,2]
[420500916,1776173448622,-500.0,0.00010958,2]
[420500918,1776173448633,-500.0,0.00010958,2]
[420500920,1776173448645,-500.0,0.00010958,2]
[420500922,1776173448673,-500.0,0.00010958,2]
[420500924,1776173448682,-500.0,0.00010958,2]
[420500926,1776173448698,-500.0,0.00010958,2]
[420500928,1776173448719,-524.7776736,0.00010958,2]
[420500930,1776173448733,-510.88588644,0.00010958,2]
[420500932,1776173448769,-500.0,0.00010958,2]
[420500934,1776173448790,-500.0,0.00010958,2]
[420500935,1776173448815,-441.1976101,0.00010958,2]
[420500944,1776173448967,-500.0,0.00010958,2]
[420500946,1776173448978,-506.44732441,0.00010958,2]
[420500948,1776173448996,-500.0,0.00010958,2]
[420500950,1776173449011,-500.0,0.00010958,2]
[420500952,1776173449029,-500.0,0.00010958,2]
[420500954,1776173449039,-504.55465383,0.00010958,2]
[420500956,1776173449048,-500.0,0.00010958,2]
[420500958,1776173449058,-500.0,0.00010958,2]
[420500960,1776173449074,-500.0,0.00010958,2]
[420500962,1776173449084,-500.0,0.00010958,2]
[420500964,1776173449094,-500.0,0.00010958,2]
[420500966,1776173449103,-579.23175847,0.00010958,2]
[420500968,1776173449130,-500.0,0.00010958,2]
[420500970,1776173449140,-500.0,0.00010958,2]
[420500972,1776173449151,-720.49,0.00010958,2]
[420500975,1776173449165,-500.0,0.00010958,2]
[420500976,1776173449178,-500.0,0.00010958,2]
[420500978,1776173449190,-500.0,0.00010958,2]
[420500980,1776173449199,-520.50303241,0.00010958,2]
[420500982,1776173449218,-500.0,0.00010958,2]
[420500984,1776173449227,-500.0,0.00010958,2]
[420500986,1776173449254,-507.51257756,0.00010958,2]
[420500988,1776173449266,-505.04602072,0.00010958,2]
[420500990,1776173449277,-494.84846587,0.00010958,2]
[420500992,1776173449299,-500.0,0.00010958,2]
[420500994,1776173449313,-512.47399159,0.00010958,2]
[420500996,1776173449323,-506.10805595,0.00010958,2]
[420500998,1776173449352,-500.0,0.00010958,2]
[420501000,1776173449361,-500.0,0.00010958,2]
[420501002,1776173449395,-500.0,0.00010958,2]
[420501004,1776173449408,-500.0,0.00010958,2]
[420501006,1776173449435,-500.0,0.00010958,2]
[420501008,1776173449445,-504.18051744,0.00010958,2]
[420501010,1776173449471,-500.0,0.00010958,2]
[420501012,1776173449481,-505.54799392,0.00010958,2]
[420501014,1776173449514,-510.62618169,0.00010958,2]
[420501016,1776173449526,-509.70660305,0.00010958,2]
[420501018,1776173449556,-500.0,0.00010958,2]
[420501020,1776173449566,-504.04872649,0.00010958,2]
[420501023,1776173449593,-777.9,0.00010958,2]
[420501024,1776173449604,-507.01900369,0.00010958,2]
[420501026,1776173449615,-500.0,0.00010958,2]
[420501028,1776173449636,-503.88588817,0.00010958,2]
[420501030,1776173449645,-504.84120177,0.00010958,2]
[420501032,1776173449657,-500.0,0.00010958,2]
[420501034,1776173449685,-500.0,0.00010958,2]
[420501036,1776173449697,-500.0,0.00010958,2]
[420501038,1776173449706,-500.0,0.00010958,2]
[420501040,1776173449729,-500.0,0.00010958,2]
[420501042,1776173449742,-500.0,0.00010958,2]
[420501044,1776173449752,-505.86865088,0.00010958,2]
[420501046,1776173449784,-500.0,0.00010958,2]
[420501048,1776173449793,-208.94595947,0.00010958,2]
[420501050,1776173449810,-500.0,0.00010958,2]
[420501052,1776173449833,-509.96851961,0.00010958,2]
[420501054,1776173449852,-500.0,0.00010958,2]
[420501056,1776173449862,-504.156326,0.00010958,2]
[420501058,1776173449877,-500.75,0.00010958,2]
[420501060,1776173449887,-500.0,0.00010958,2]
[420501062,1776173449897,-500.0,0.00010958,2]
[420501064,1776173449906,-641.64668646,0.00010958,2]
[420501066,1776173449918,-500.0,0.00010958,2]
[420501068,1776173449935,-507.81095366,0.00010958,2]
[420501070,1776173449948,-507.03819819,0.00010958,2]
[420501072,1776173449958,-500.0,0.00010958,2]
[420501074,1776173449968,-503.1332723,0.00010958,2]
[420501076,1776173449978,-927.59,0.00010958,2]
[420501078,1776173449994,-500.0,0.00010958,2]
[420501080,1776173450010,-500.0,0.00010958,2]
[420501082,1776173450020,-500.0,0.00010958,2]
[420501084,1776173450029,-500.0,0.00010958,2]
[420501086,1776173450038,-500.0,0.00010958,2]
[420501088,1776173450054,-500.0,0.00010958,2]
[420501090,1776173450063,-500.0,0.00010958,2]
[420501092,1776173450073,-525.41434279,0.00010958,2]
[420501094,1776173450095,-570.57668823,0.00010958,2]
[420501096,1776173450104,-828.86,0.00010958,2]
[420501098,1776173450114,-517.1238211,0.00010958,2]
[420501100,1776173450125,-508.61745672,0.00010958,2]
[420501102,1776173450141,-500.0,0.00010958,2]
[420501104,1776173450152,-504.33540285,0.00010958,2]
[420501106,1776173450161,-500.0,0.00010958,2]
[420501108,1776173450174,-500.0,0.00010958,2]
[420501109,1776173450203,-513.07205727,0.00010958,2]
[420501111,1776173450213,-500.0,0.00010958,2]
[420501113,1776173450223,-500.0,0.00010958,2]
[420501115,1776173450244,-505.51111684,0.00010958,2]
[420501117,1776173450257,-515.38562141,0.00010958,2]
[420501119,1776173450269,-508.1541844,0.00010958,2]
[420501121,1776173450285,-500.0,0.00010958,2]
[420501123,1776173450295,-526.75246134,0.00010958,2]
[420501125,1776173450305,-500.0,0.00010958,2]
[420501127,1776173450326,-500.0,0.00010958,2]
[420501129,1776173450338,-500.0,0.00010958,2]
[420501131,1776173450347,-500.0,0.00010958,2]
[420501133,1776173450379,-500.0,0.00010958,2]
[420501135,1776173450390,-372.7576271,0.00010958,2]
[420501137,1776173450428,-500.0,0.00010958,2]
[420501139,1776173450439,-500.0,0.00010958,2]
[420501141,1776173450452,-604.66799086,0.00010958,2]
[420501143,1776173450469,-279.57340015,0.00010958,2]
[420501145,1776173450492,-500.0,0.00010958,2]
[420501147,1776173450504,-500.0,0.00010958,2]
[420501149,1776173450514,-500.0,0.00010958,2]
[420501151,1776173450535,-505.8468299,0.00010958,2]
[420501153,1776173450577,-500.0,0.00010958,2]
[420501155,1776173450586,-513.2784367,0.00010958,2]
[420501157,1776173450613,-504.96882584,0.00010958,2]
[420501158,1776173450637,-500.0,0.00010958,2]
[420501160,1776173450654,-521.3371056,0.00010958,2]
[420501163,1776173450681,-500.0,0.00010958,2]
[420501164,1776173450692,-500.0,0.00010958,2]
[420501167,1776173450727,-500.0,0.00010958,2]
[420501169,1776173450737,-587.12199284,0.00010958,2]
[420501170,1776173450767,-623.33131188,0.00010958,2]
[420501171,1776173450795,-500.0,0.00010958,2]
[420501172,1776173450805,-500.0,0.00010958,2]
[420501173,1776173450821,-208.20774354,0.00010958,2]
[420501174,1776173450845,-500.0,0.00010958,2]
[420501175,1776173450858,-311.18403785,0.00010958,2]
[420501176,1776173450887,-500.0,0.00010958,2]
[420501177,1776173450897,-500.0,0.00010958,2]
[420501178,1776173450921,-500.0,0.00010958,2]
[420501179,1776173450955,-500.0,0.00010958,2]
[420501180,1776173450975,-500.0,0.00010958,2]
[420501181,1776173450987,-511.82714089,0.00010958,2]
[420501182,1776173451001,-500.0,0.00010958,2]
[420501183,1776173451017,-2186.88,0.00010958,2]
[420501184,1776173451045,-500.0,0.00010958,2]
[420501185,1776173451054,-500.0,0.00010958,2]
[420501186,1776173451072,-500.0,0.00010958,2]
[420501187,1776173451094,-14917.15,0.00010958,2]
[420501188,1776173451103,-500.0,0.00010958,2]
[420501189,1776173451127,-500.0,0.00010958,2]
[420501190,1776173451138,-500.0,0.00010958,2]
[420501191,1776173451148,-4431.3,0.00010958,2]
[420501192,1776173451196,-500.0,0.00010958,2]
[420501193,1776173451209,-500.0,0.00010958,2]
[420501194,1776173451235,-500.0,0.00010958,2]
[420501195,1776173451254,-500.0,0.00010958,2]
[420501196,1776173451266,-17341.21,0.00010958,2]
[420501197,1776173451293,-500.0,0.00010958,2]
[420501198,1776173451306,-57126.35,0.00010958,2]
[420501199,1776173451330,-500.0,0.00010958,2]
[420501200,1776173451350,-13097.02,0.00010958,2]
[420501201,1776173451388,-505.40322805,0.00010958,2]
[420501202,1776173451413,-500.0,0.00010958,2]
[420501203,1776173451431,-355.6629671,0.00010958,2]
[420501204,1776173451446,-3441.91,0.00010958,2]
[420501205,1776173451506,-583.35,0.00010958,2]
[420501206,1776173451550,-500.0,0.00010958,2]
[420501207,1776173451593,-293.33632236,0.00010958,2]
[420501208,1776173451603,-500.0,0.00010958,2]
[420501209,1776173451650,-500.0,0.00010958,2]
[420501210,1776173451662,-500.0,0.00010958,2]
[420501211,1776173451679,-500.0,0.00010958,2]
[420501212,1776173451693,-30403.0,0.00010958,2]
[420501213,1776173451705,-500.0,0.00010958,2]
[420501214,1776173451728,-500.0,0.00010958,2]
[420501215,1776173451738,-44401.7,0.00010958,2]
[420501216,1776173451749,-502.34380155,0.00010958,2]
[420501217,1776173451765,-65357.69,0.00010958,2]
[420501218,1776173451785,-23543.85,0.00010958,2]
[420501219,1776173451797,-515.2409696,0.00010958,2]
[420501220,1776173451829,-500.0,0.00010958,2]
[420501221,1776173451868,-500.0,0.00010958,2]
[420501222,1776173451881,-500.0,0.00010958,2]
[420501223,1776173451916,-500.0,0.00010958,2]
[420501224,1776173451925,-569.39164931,0.00010958,2]
[420501225,1776173451938,-10178.84,0.00010958,2]
[420501226,1776173451972,-377.58984771,0.00010958,2]
[420501227,1776173451985,-500.0,0.00010958,2]
[420501228,1776173452019,-500.0,0.00010958,2]
[420501229,1776173452031,-500.0,0.00010958,2]
[420501230,1776173452055,-519.70800883,0.00010958,2]
[420501231,1776173452064,-500.0,0.00010958,2]
[420501232,1776173452086,-10937.15,0.00010958,2]
[420501233,1776173452099,-500.0,0.00010958,2]
[420501234,1776173452117,-500.0,0.00010958,2]
[420501235,1776173452133,-17488.66,0.00010958,2]
[420501236,1776173452142,-507.09148927,0.00010958,2]
[420501237,1776173452161,-500.0,0.00010958,2]
[420501238,1776173452183,-500.0,0.00010958,2]
[420501239,1776173452193,-500.0,0.00010958,2]
[420501240,1776173452224,-260.3889063,0.00010958,2]
[420501241,1776173452235,-16417.96,0.00010958,2]
[420501242,1776173452263,-500.0,0.00010958,2]
[420501243,1776173452289,-500.0,0.00010958,2]
[420501244,1776173452303,-8946.3,0.00010958,2]
[420501245,1776173452343,-511.487746,0.00010958,2]
[420501246,1776173452353,-509.07237066,0.00010958,2]
[420501247,1776173452366,-508.56779568,0.00010958,2]
[420501248,1776173452402,-364.78619651,0.00010958,2]
[420501249,1776173452412,-17199.96,0.00010958,2]
[420501250,1776173452427,-500.0,0.00010958,2]
[420501251,1776173452445,-507.92359993,0.00010958,2]
[420501252,1776173452455,-500.0,0.00010958,2]
[420501253,1776173452468,-500.0,0.00010958,2]
[420501254,1776173452499,-202.77078356,0.00010958,2]
[420501255,1776173452509,-509.40792716,0.00010958,2]
[420501256,1776173452523,-500.0,0.00010958,2]
[420501257,1776173452543,-500.0,0.00010958,2]
[420501258,1776173452553,-15380.3736,0.00010959,2]
[420501259,1776173452566,-151.0,0.00010959,2]
[420501260,1776173452588,-151.0,0.00010959,2]
[420501261,1776173452610,-153.608038,0.00010959,2]
[420501262,1776173452623,-500.0,0.00010959,2]
[420501263,1776173452633,-500.0,0.00010959,2]
[420501264,1776173452652,-500.0,0.00010959,2]
[420501265,1776173452668,-500.0,0.00010959,2]
[420501266,1776173452679,-500.0,0.00010959,2]
[420501267,1776173452698,-500.0,0.00010959,2]
[420501268,1776173452713,-679.24698996,0.00010959,2]
[420501269,1776173452739,-851.08288545,0.00010959,2]
[420501270,1776173452755,-851.08288545,0.00010959,2]
[420501271,1776173452772,-851.08288545,0.00010959,2]
[420501272,1776173452806,-851.08288545,0.00010959,2]
[420501273,1776173452824,-851.08288545,0.00010959,2]
[420501274,1776173452845,-851.08288545,0.00010959,2]
[420501275,1776173452857,-851.08288545,0.00010959,2]
[420501276,1776173452893,-851.08288545,0.00010959,2]
[420501277,1776173452907,-851.08288545,0.00010959,2]
[420501278,1776173452933,-851.08288545,0.00010959,2]
[420501279,1776173452942,-857.89154853,0.00010959,2]
[420501280,1776173452961,-857.89154853,0.00010959,2]
[420501281,1776173452996,-857.89154853,0.00010959,2]
[420501282,1776173453022,-857.89154853,0.00010959,2]
[420501283,1776173453032,-857.89154853,0.00010959,2]
[420501284,1776173453044,-857.89154853,0.00010959,2]
[420501285,1776173453057,-857.89154853,0.00010959,2]
[420501286,1776173453068,-857.89154853,0.00010959,2]
[420501287,1776173453077,-857.89154853,0.00010959,2]
[420501288,1776173453090,-857.89154853,0.00010959,2]
[420501289,1776173453102,-857.89154853,0.00010959,2]
[420501290,1776173453113,-857.89154853,0.00010959,2]
[420501291,1776173453126,-857.89154853,0.00010959,2]
[420501292,1776173453136,-857.89154853,0.00010959,2]
[420501293,1776173453150,-936.57199752,0.00010959,2]
[420501294,1776173453161,-936.57199752,0.00010959,2]
[420501295,1776173453173,-936.57199752,0.00010959,2]
[420501296,1776173453188,-936.57199752,0.00010959,2]
[420501297,1776173453198,-936.57199752,0.00010959,2]
[420501298,1776173453210,-936.57199752,0.00010959,2]
[420501299,1776173453229,-936.57199752,0.00010959,2]
[420501300,1776173453238,-936.57199752,0.00010959,2]
[420501301,1776173453262,-151.0,0.00011,2]
[420501302,1776173453289,-151.0,0.00011,2]
[420501303,1776173453300,-151.0,0.00011,2]
[420501304,1776173453321,-354.0,0.00011004,2]
[420501305,1776173453335,-392.05582151,0.00011039,7]
[420501306,1776173453363,-855.42856335,0.000111,2]
[420501307,1776173453374,-2877.598,0.00011232,2]
[420501308,1776173453401,-1822.4652,0.00011232,2]
[420501309,1776173453430,-500.0,0.00011232,2]
[420501310,1776173453451,-500.0,0.00011232,2]
[420501311,1776173453465,-500.0,0.00011232,2]
[420501312,1776173453476,-500.0,0.00011232,2]
[420501313,1776173453522,-500.0,0.00011232,2]
[420501314,1776173453550,-500.0,0.00011232,2]
[420501315,1776173453576,-500.0,0.00011232,2]
[420501316,1776173453587,-581.90493203,0.00011232,2]
[420501317,1776173453600,-500.0,0.00011232,2]
[420501318,1776173453635,-500.0,0.00011232,2]
[420501319,1776173453659,-500.0,0.00011232,2]
[420501320,1776173453669,-500.0,0.00011232,2]
[420501321,1776173453679,-500.0,0.00011232,2]
[420501322,1776173453698,-500.0,0.00011232,2]
[420501323,1776173453708,-500.0,0.00011232,2]
[420501324,1776173453719,-500.0,0.00011232,2]
[420501325,1776173453732,-500.0,0.00011232,2]
[420501326,1776173453749,-500.0,0.00011232,2]
[420501327,1776173453759,-500.0,0.00011232,2]
[420501328,1776173453769,-500.0,0.00011232,2]
[420501329,1776173453782,-507.52382897,0.00011232,2]
[420501330,1776173453794,-500.0,0.00011232,2]
[420501331,1776173453804,-507.09002715,0.00011232,2]
[420501332,1776173453814,-500.0,0.00011232,2]
[420501333,1776173453833,-500.0,0.00011232,2]
[420501334,1776173453843,-547.23036392,0.00011232,2]
[420501335,1776173453853,-500.0,0.00011232,2]
[420501336,1776173453867,-500.0,0.00011232,2]
[420501337,1776173453891,-550.91889103,0.00011232,2]
[420501338,1776173453903,-500.0,0.00011232,2]
[420501339,1776173453914,-506.0066246,0.00011232,2]
[420501340,1776173453934,-500.0,0.00011232,2]
[420501341,1776173453950,-506.76779467,0.00011232,2]
[420501342,1776173453960,-500.0,0.00011232,2]
[420501343,1776173453977,-500.0,0.00011232,2]
[420501344,1776173453993,-500.0,0.00011232,2]
[420501345,1776173454011,-500.0,0.00011232,2]
[420501346,1776173454030,-500.0,0.00011232,2]
[420501347,1776173454040,-500.0,0.00011232,2]
[420501348,1776173454059,-500.0,0.00011232,2]
[420501349,1776173454090,-500.0,0.00011232,2]
[420501350,1776173454102,-500.0,0.00011232,2]
[420501351,1776173454119,-644.90252124,0.00011232,2]
[420501352,1776173454142,-500.0,0.00011232,2]
[420501353,1776173454152,-528.42381191,0.00011232,2]
[420501354,1776173454164,-500.0,0.00011232,2]
[420501355,1776173454183,-500.0,0.00011232,2]
[420501356,1776173454319,-500.0,0.00011232,2]
[420501357,1776173454337,-500.0,0.00011232,2]
[420501358,1776173454370,-500.0,0.00011232,2]
[420501359,1776173454379,-500.0,0.00011232,2]
[420501360,1776173454408,-720.49,0.00011232,2]
[420501361,1776173454427,-500.0,0.00011232,2]
[420501362,1776173454475,-500.0,0.00011232,2]
[420501363,1776173454519,-469.1661402,0.00011232,2]
[420501364,1776173454536,-500.0,0.00011232,2]
[420501365,1776173454549,-500.0,0.00011232,2]
[420501366,1776173454582,-503.09745899,0.00011232,2]
[420501367,1776173454592,-500.0,0.00011232,2]
[420501368,1776173454602,-500.0,0.00011232,2]
[420501369,1776173454621,-500.0,0.00011232,2]
[420501370,1776173454631,-560.48048599,0.00011232,2]
[420501371,1776173454641,-509.82072786,0.00011232,2]
[420501372,1776173454655,-500.0,0.00011232,2]
[420501373,1776173454672,-500.0,0.00011232,2]
[420501374,1776173454683,-777.9,0.00011232,2]
[420501375,1776173454696,-500.0,0.00011232,2]
[420501376,1776173454707,-500.0,0.00011232,2]
[420501377,1776173454718,-500.0,0.00011232,2]
[420501378,1776173454727,-500.0,0.00011232,2]
[420501379,1776173454738,-500.0,0.00011232,2]
[420501380,1776173454751,-500.0,0.00011232,2]
[420501381,1776173454762,-500.0,0.00011232,2]
[420501382,1776173454771,-500.0,0.00011232,2]
[420501383,1776173454782,-500.0,0.00011232,2]
[420501384,1776173454792,-500.0,0.00011232,2]
[420501385,1776173454803,-500.75,0.00011232,2]
[420501386,1776173454813,-500.0,0.00011232,2]
[420501387,1776173454826,-500.0,0.00011232,2]
[420501388,1776173454836,-546.85826504,0.00011232,2]
[420501389,1776173454850,-500.0,0.00011232,2]
[420501390,1776173454862,-927.59,0.00011232,2]
[420501391,1776173454877,-500.0,0.00011232,2]
[420501392,1776173454890,-500.0,0.00011232,2]
[420501393,1776173454907,-510.46588361,0.00011232,2]
[420501394,1776173454919,-500.0,0.00011232,2]
[420501395,1776173454930,-503.90334106,0.00011232,2]
[420501396,1776173454942,-828.86,0.00011232,2]
[420501397,1776173454963,-500.0,0.00011232,2]
[420501398,1776173454976,-500.0,0.00011232,2]
[420501399,1776173454999,-500.0,0.00011232,2]
[420501400,1776173455009,-500.0,0.00011232,2]
[420501401,1776173455022,-507.96131782,0.00011232,2]
[420501402,1776173455046,-249.93619775,0.00011232,2]
[420501403,1776173455060,-500.0,0.00011232,2]
[420501404,1776173455075,-500.0,0.00011232,2]
[420501405,1776173455090,-500.0,0.00011232,2]
[420501406,1776173455120,-500.0,0.00011232,2]
[420501407,1776173455133,-500.0,0.00011232,2]
[420501408,1776173455145,-500.0,0.00011232,2]
[420501409,1776173455166,-500.0,0.00011232,2]
[420501410,1776173455178,-500.0,0.00011232,2]
[420501411,1776173455187,-500.0,0.00011232,2]
[420501412,1776173455197,-500.33494461,0.00011232,2]
[420501413,1776173455212,-500.0,0.00011232,2]
[420501414,1776173455222,-593.84449663,0.00011232,2]
[420501415,1776173455231,-523.66701131,0.00011232,2]
[420501416,1776173455241,-500.0,0.00011232,2]
[420501417,1776173455267,-500.0,0.00011232,2]
[420501418,1776173455277,-509.36558812,0.00011232,2]
[420501419,1776173455287,-515.61728963,0.00011232,2]
[420501420,1776173455302,-500.0,0.00011232,2]
[420501421,1776173455315,-500.0,0.00011232,2]
[420501422,1776173455325,-592.74179602,0.00011232,2]
[420501423,1776173455340,-2186.88,0.00011232,2]
[420501424,1776173455350,-500.0,0.00011232,2]
[420501425,1776173455368,-500.0,0.00011232,2]
[420501426,1776173455382,-500.0,0.00011232,2]
[420501427,1776173455391,-14917.15,0.00011232,2]
[420501428,1776173455405,-500.0,0.00011232,2]
[420501429,1776173455417,-500.0,0.00011232,2]
[420501430,1776173455427,-500.0,0.00011232,2]
[420501431,1776173455437,-4431.3,0.00011232,2]
[420501432,1776173455449,-500.0,0.00011232,2]
[420501433,1776173455463,-500.0,0.00011232,2]
[420501434,1776173455482,-500.0,0.00011232,2]
[420501435,1776173455492,-500.0,0.00011232,2]
[420501436,1776173455504,-17341.21,0.00011232,2]
[420501437,1776173455525,-516.06578059,0.00011232,2]
[420501438,1776173455534,-57126.35,0.00011232,2]
[420501439,1776173455554,-500.0,0.00011232,2]
[420501440,1776173455569,-13097.02,0.00011232,2]
[420501441,1776173455578,-500.0,0.00011232,2]
[420501442,1776173455608,-3441.91,0.00011232,2]
[420501443,1776173455619,-583.35,0.00011232,2]
[420501444,1776173455629,-500.0,0.00011232,2]
[420501445,1776173455660,-503.81846972,0.00011232,2]
[420501446,1776173455672,-500.0,0.00011232,2]
[420501447,1776173455683,-500.0,0.00011232,2]
[420501448,1776173455705,-505.59179091,0.00011232,2]
[420501449,1776173455728,-30403.0,0.00011232,2]
[420501450,1776173455739,-500.0,0.00011232,2]
[420501451,1776173455762,-500.0,0.00011232,2]
[420501452,1776173455774,-44401.7,0.00011232,2]
[420501453,1776173455789,-65357.69,0.00011232,2]
[420501454,1776173455798,-23543.85,0.00011232,2]
[420501455,1776173455828,-628.04344468,0.00011232,2]
[420501456,1776173455839,-500.0,0.00011232,2]
[420501457,1776173455852,-500.0,0.00011232,2]
[420501458,1776173455869,-500.0,0.00011232,2]
[420501459,1776173455882,-10178.84,0.00011232,2]
[420501460,1776173455892,-500.0,0.00011232,2]
[420501461,1776173455916,-523.3301477,0.00011232,2]
[420501462,1776173455926,-500.0,0.00011232,2]
[420501463,1776173455935,-10937.15,0.00011232,2]
[420501464,1776173455945,-500.0,0.00011232,2]
[420501465,1776173455964,-500.0,0.00011232,2]
[420501466,1776173455974,-17488.66,0.00011232,2]
[420501467,1776173455984,-500.0,0.00011232,2]
[420501468,1776173456009,-500.0,0.00011232,2]
[420501469,1776173456020,-500.0,0.00011232,2]
[420501470,1776173456031,-16417.96,0.00011232,2]
[420501471,1776173456055,-499.95,0.00011232,2]
[420501472,1776173456065,-512.91905832,0.00011232,2]
[420501473,1776173456075,-8946.3,0.00011232,2]
[420501474,1776173456103,-17199.96,0.00011232,2]
[420501475,1776173456112,-500.0,0.00011232,2]
[420501476,1776173456129,-500.0,0.00011232,2]
[420501477,1776173456150,-500.0,0.00011232,2]
[420501478,1776173456160,-522.33814015,0.00011232,2]
[420501479,1776173456178,-233.0,0.00011267,2]
[420501480,1776173456193,-566.0,0.00011267,2]
[420501481,1776173456207,-1089.0,0.00011267,2]
[420501482,1776173456221,-715.0,0.00011267,2]
[420501483,1776173456232,-237.0,0.00011267,2]
[420501484,1776173456251,-218.66524445,0.00011369,7]
[420501485,1776173456268,-392.05582151,0.00011385,7]
[420501486,1776173456285,-548.77227298,0.00011406,7]
[420501487,1776173456298,-181.21044585,0.00011417,7]
[420501488,1776173456318,-249.85072128,0.00011417,7]
[420501489,1776173456333,-159.47482622,0.00011417,7]
[420501490,1776173456353,-246.85645306,0.00011425,7]
[420501491,1776173456372,-305.89362706,0.00011434,7]
[420501492,1776173456384,-224.85413023,0.00011434,7]
[420501493,1776173456410,-540.53916667,0.00011434,7]
[420501494,1776173456436,-160.0,0.00011444,2]
[420501495,1776173456453,-160.0,0.0001147,2]
[420501496,1776173456474,-4700.0632,0.00011506,2]
[420501497,1776173456490,-500.0,0.00011506,2]
[420501498,1776173456503,-506.53868806,0.00011506,2]
[420501499,1776173456528,-505.29878603,0.00011506,2]
[420501500,1776173456548,-500.0,0.00011506,2]
[420501501,1776173456569,-503.89112444,0.00011506,2]
[420501502,1776173456579,-500.0,0.00011506,2]
[420501503,1776173456589,-500.0,0.00011506,2]
[420501504,1776173456604,-558.14701795,0.00011506,2]
[420501505,1776173456617,-640.68147896,0.00011506,2]
[420501506,1776173456626,-500.0,0.00011506,2]
[420501507,1776173456641,-500.0,0.00011506,2]
[420501508,1776173456652,-500.0,0.00011506,2]
[420501509,1776173456660,-505.5483726,0.00011506,2]
[420501510,1776173456671,-500.0,0.00011506,2]
[420501511,1776173456685,-500.0,0.00011506,2]
[420501512,1776173456703,-500.0,0.00011506,2]
[420501513,1776173456713,-500.0,0.00011506,2]
[420501514,1776173456730,-500.0,0.00011506,2]
[420501515,1776173456742,-500.0,0.00011506,2]
[420501516,1776173456753,-500.0,0.00011506,2]